Cogmind - Beta 17 @@@ ROGUE MODE // 2026.08.02 @ 01:23:56 Player: mischief_2000 Result: Self-destructed Performance ------------- Evolutions (4) 2000 Regions Visited (9) 1800 Robots Destroyed (69) 345 Value Destroyed (2259) 2259 Prototype IDs (25) 500 Alien Tech Used (0) 0 Bonus (1099) 1099 TOTAL SCORE: 8003 Bonus ------- Follower Combat Kills 99 Entered Garrisons 200 Entered DSFs 500 Aligned with FarCom 300 Cogmind --------- Core Integrity 166/850 Matter 30/300 Energy 100/100 System Corruption 15% Temperature Cool (27) Movement Core (750) Ox14 Location -6/Garrison Parts ------- > --- POWER (2) -------- (None) > --- PROPULSION (6) --- (None) > --- UTILITY (4) ------ High-capacity Storage Unit > --- WEAPON (3) ------- Powered Hammer > --- INVENTORY (20) --- Improved Deuterium Engine Potential Leg Potential Leg Gravmag System Gravmag System High-capacity Matter Pod (0) Microactuators Microactuators Hacking Suite High-powered Tractor Beam Pulse Rifle Coil Gun Coil Gun Coil Gun Coil Gun Coil Gun Powered Hammer Peak State ------------ > --- POWER ------------ Light Nuclear Core Improved Deuterium Engine > --- PROPULSION ------- Light Treads Light Treads Improved Treads Armored Treads Gravmag System > --- UTILITY ---------- High-capacity Storage Unit Improved Light Armor Plating Insulated Plating > --- WEAPON ----------- Coil Gun Coil Gun Coil Gun > --- INVENTORY -------- Improved Deuterium Engine Potential Leg Potential Leg Gravmag System Gravmag System High-capacity Matter Pod Microactuators Microactuators Microactuators Hacking Suite High-powered Tractor Beam Pulse Rifle Coil Gun Coil Gun Rocket Launcher Improved Grenade Launcher Improved Grenade Launcher Powered Hammer Powered Hammer Powered Hammer [Rating: 48] Favorites ----------- Power Ion Engine Engine Ion Engine Power Core Light Nuclear Core Propulsion Light Treads Treads Light Treads Leg Aluminum Leg Wheel Wheel Hover Unit Gravmag System Utility Seismic Detector Device Seismic Detector Storage High-capacity Storage Unit Hackware System Shield Protection Insulated Plating Weapon Light Assault Rifle Energy Gun Heavy EM Shotgun Ballistic Gun Light Assault Rifle Ballistic Cannon Assault Cannon Launcher Rocket Launcher Special Weapon Mining Laser Impact Weapon Powered Hammer Slashing Weapon Katana Build | -11 -10 -10 -10 -9 -8 -7 -7 -6 -6 ------- Run | Yrd Mat Min Exi Min Mat Fac DSF Fac Gar Slots Evolved 8 | . . . . . 4 2 . 2 . Power 1 | . . . . . . . . 1 . Propulsion 4 | . . . . . 2 1 . 1 . Utility 2 | . . . . . 1 1 . . . Weapon 1 | . . . . . 1 . . . . Parts Attached 60 | 7 2 2 . 7 20 1 8 2 11 Power 6 | 1 . . . 1 1 . . . 3 Engine 4 | 1 . . . 1 1 . . . 1 Core 2 | . . . . . . . . . 2 Reactor . | . . . . . . . . . . Propulsion 17 | 2 . . . 3 8 . 2 . 2 Treads 8 | 2 . . . . 4 . 1 . 1 Leg 6 | . . . . 1 4 . . . 1 Wheel 2 | . . . . 2 . . . . . Hover 1 | . . . . . . . 1 . . Flight . | . . . . . . . . . . Utility 16 | 2 . 1 . 1 5 1 3 1 2 Device 5 | 1 . . . . 1 . 2 . 1 Storage 4 | 1 . 1 . 1 1 . . . . Processor . | . . . . . . . . . . Hackware 1 | . . . . . . 1 . . . Protection 6 | . . . . . 3 . 1 1 1 Artifact . | . . . . . . . . . . Weapon 21 | 2 2 1 . 2 6 . 3 1 4 Energy Gun 6 | 1 1 . . 1 2 . 1 . . Energy Cannon . | . . . . . . . . . . Ballistic Gun 7 | 1 . 1 . 1 1 . 1 1 1 Ballistic Cannon 1 | . . . . . 1 . . . . Launcher 3 | . . . . . 1 . 1 . 1 Special Weapon 1 | . 1 . . . . . . . . Impact Weapon 2 | . . . . . . . . . 2 Slashing Weapon 1 | . . . . . 1 . . . . Piercing Weapon . | . . . . . . . . . . Special Melee Weapon . | . . . . . . . . . . Unidentified Prototypes 2 | . . . . . 2 . . . . Corrupted Parts 1 | . . . . . . . . . 1 System Corruption 10 | . . . . . . . . . 10 Parts Lost 22 | . . . . 4 . . . . 18 Power 5 | . . . . 1 . . . . 4 Propulsion 9 | . . . . 2 . . . . 7 Utility 3 | . . . . . . . . . 3 Weapon 5 | . . . . 1 . . . . 4 Highest Loss Streak 8 | . . . . 2 . . . . 8 To Critical Strikes . | . . . . . . . . . . Average Backups 14 | 5 8 9 12 15 18 19 19 20 19 Power . | . 1 1 1 . 1 1 1 1 1 Propulsion 4 | 3 4 4 5 6 5 2 3 4 4 Utility 4 | . 1 1 3 5 7 8 7 6 5 Weapon 4 | . 2 2 3 3 4 7 7 9 8 Tool/Special . | . . . . . . . . . . Unused Backups 34 | . . . 2 . 16 1 3 . 12 Power 4 | . . . . . 2 1 . . 1 Propulsion 7 | . . . . . 2 . 1 . 4 Utility 17 | . . . 2 . 10 . 1 . 4 Weapon 6 | . . . . . 2 . 1 . 3 Tool/Special . | . . . . . . . . . . Average Slot Usage (%) 92 | . 98 100 100 99 91 88 95 74 67 Engine 10 | . 14 14 14 14 9 7 7 6 5 Treads 23 | . 26 28 28 14 27 30 33 26 16 Leg 1 | . . . . 2 5 . . . . Wheel 2 | . . . . 11 1 . . . . Device 9 | . 14 14 14 14 7 . 3 . 3 Storage 10 | . 14 14 14 14 9 7 7 6 6 Protection 4 | . . . . . 6 15 14 7 10 Energy Gun 8 | . 14 6 . 3 19 15 8 6 . Ballistic Gun 12 | . 13 21 28 24 . . 3 8 6 Ballistic Cannon 1 | . . . . . 5 7 3 . . Launcher 1 | . . . . . . . 5 3 3 Peak Build Rating 48 | 7 7 8 11 11 33 36 44 43 48 Average Rating 19 | 6 6 7 9 10 23 34 38 38 41 On Entrance 19 | . 7 7 8 11 11 33 36 37 43 Avg Prop Armor Cover (%) 9 | . . . . 13 6 . 2 2 1 Naked Turns . | . . . . . . . . . . Heaviest Build 78 | 11 11 27 27 48 68 68 71 69 78 Greatest Support 103 | 40 40 40 40 16 83 83 103 83 83 Greatest Overweight (x) 18 | 1 . . . 4 3 . . . 18 Average Overweight (x) . | . . . . 3 . . . . . Largest Inventory Capacity 20 | 8 8 15 15 20 20 20 20 20 20 Average Capacity 16 | 7 8 12 15 19 20 20 20 20 20 Most Carried 20 | 8 8 11 15 16 20 20 20 20 20 Average Carried 14 | 5 8 9 12 15 18 19 19 20 19 Final Capacity 20 | 8 8 15 15 20 20 20 20 20 20 Final Carried 20 | 8 8 11 15 15 20 20 20 20 17 Class Distribution -------------------- 54% | Mutant 15% | Scavenger-Tank 14% | Scavenger-Skirmisher 5% | Gladiator 4% | Skirmisher Dominant Class ---------------- Mutant | -10/Materials Mutant | -10/Mines Mutant | -10/Exiles Mutant | -9/Mines Scavenger-Skirmisher | -8/Materials Scavenger-Tank | -7/Factory Scavenger-Tank | -7/DSF Skirmisher | -6/Factory Gladiator | -6/Garrison Resources | -11 -10 -10 -10 -9 -8 -7 -7 -6 -6 ----------- Run | Yrd Mat Min Exi Min Mat Fac DSF Fac Gar Matter Collected 1364 | 298 62 58 12 149 273 . 283 . 229 Remotely 134 | . . . . . . . 134 . . Salvage Created 2428 | 303 206 164 . 439 420 . 478 . 418 Parts 126 | 20 8 15 . 20 26 . 14 . 23 Haulers Intercepted 2 | . . . . . 2 . . . . Recyclers Shooed 1 | . . . . 1 . . . . . Parts Field Recycled . | . . . . . . . . . . Retrieved Matter . | . . . . . . . . . . Parts Self-Destructed . | . . . . . . . . . . Prevented . | . . . . . . . . . . Parts Restored . | . . . . . . . . . . Kills | -11 -10 -10 -10 -9 -8 -7 -7 -6 -6 ------- Run | Yrd Mat Min Exi Min Mat Fac DSF Fac Gar Combat Hostiles Destroyed 48 | . 4 6 . 9 5 . 11 . 13 Melee 2 | . . . . . . . . . 2 Guns 26 | . 4 6 . 9 3 . 3 . 1 Cannons 3 | . . . . . 2 . 1 . . AOE 14 | . . . . . . . 6 . 8 Classes Destroyed 14 | 3 1 1 . 2 4 . 2 . 1 Worker 3 | 2 . . . 1 . . . . . Builder 2 | . . . . 1 1 . . . . Tunneler 8 | 7 . . . 1 . . . . . Hauler 2 | . . . . . 2 . . . . Recycler 3 | 1 . 1 . 1 . . . . . Watcher 3 | . . . . . 3 . . . . Swarmer 16 | . . 6 . 3 . . . . 7 Grunt 20 | . 4 . . 5 2 . 5 . 4 Brawler 2 | . . . . 1 . . 1 . . Duelist 2 | . . . . . 1 . . . 1 Sentry 2 | . . . . . 2 . . . . Specialist 4 | . . . . . . . 4 . . Heavy 1 | . . . . . . . 1 . . Behemoth 1 | . . . . . . . . . 1 Best Kill Streak 7 | 3 2 3 . 7 3 . 4 . 5 Combat Bots Only 6 | . 2 3 . 6 2 . 4 . 5 Max Kills in Single Turn 3 | 1 1 1 . 1 1 . 2 . 3 Gunslinging . | . . . . . . . . . . Exploded 2 | . . . . . . . 2 . 2 Melee 1 | . . . . . . . . . 1 Uniques/NPCs Destroyed . | . . . . . . . . . . Combat | -11 -10 -10 -10 -9 -8 -7 -7 -6 -6 -------- Run | Yrd Mat Min Exi Min Mat Fac DSF Fac Gar Hostile Shots Fired 341 | . 24 32 . 35 12 . 36 . 202 Missed 105 | . 5 11 . 13 4 . 13 . 59 Hits 236 | . 19 21 . 22 8 . 23 . 143 Melee 2 | . . . . . . . . . 2 Projectile 234 | . 19 21 . 22 8 . 23 . 141 Critical Strikes 9 | . 1 . . 1 . . 1 . 6 Damage Taken 4807 | . 260 205 . 455 153 . 654 . 3080 Core 1117 | . 62 41 . 104 15 . 211 . 684 Absorbed by Shields . | . . . . . . . . . . Regen/Repaired (Parts) 140 | . 59 . . . 81 . . . . Core Remaining (%) 70 | 100 . . . 17 97 . 69 . . Volleys Fired 157 | 28 24 18 . 30 26 . 15 . 16 Largest 3 | 2 2 2 . 2 3 . 3 . 3 Hottest 155 | 60 100 60 . 60 155 . 152 . 102 Shots Fired 321 | 56 45 36 . 60 54 . 41 . 29 Gun 270 | 56 43 36 . 60 36 . 21 . 18 Cannon 24 | . . . . . 15 . 9 . . Launcher 25 | . . . . . 3 . 11 . 11 Special 2 | . 2 . . . . . . . . Kinetic 183 | 28 22 26 . 57 17 . 15 . 18 Thermal 98 | 28 23 10 . 3 23 . 11 . . Explosive 25 | . . . . . 3 . 11 . 11 Electromagnetic 15 | . . . . . 11 . 4 . . Robot Hit Streak 16 | 8 13 8 . 16 8 . 8 . 7 Robot Miss Streak 5 | 3 5 3 . 3 5 . 4 . 4 Penetration Max . | . . . . . . . . . . Secondary Targets 8 | . 1 1 . 5 1 . . . . Max Gunslinging Chain 1 | . 1 1 . 1 1 . . . . Shots Hit Robots 212 | 38 25 19 . 44 32 . 22 . 32 Core Hits 127 | 17 12 10 . 22 19 . 24 . 23 Critical Kills . | . . . . . . . . . . Critical Parts Destroyed 2 | . . . . . . . . . 2 Critical Strikes 5 | . . . . . . . 3 . 2 Burn 1 | . . . . . . . 1 . . Blast 2 | . . . . . . . 2 . . Smash 2 | . . . . . . . . . 2 Melee Attacks 27 | . . . . . 4 . . . 23 Impact 23 | . . . . . . . . . 23 Slashing 4 | . . . . . 4 . . . . Piercing . | . . . . . . . . . . Sneak Attacks . | . . . . . . . . . . Combat Hostiles . | . . . . . . . . . . Follow-up Attacks 3 | . . . . . . . . . 3 Damage Inflicted 5267 | 369 240 220 . 450 809 . 1117 . 2062 Guns 2191 | 369 240 220 . 450 373 . 282 . 257 Cannons 333 | . . . . . 217 . 116 . . Explosions 2057 | . . . . . 219 . 719 . 1119 Melee 686 | . . . . . . . . . 686 Ramming . | . . . . . . . . . . Kinetic 1525 | 149 127 144 . 429 217 . 202 . 257 Thermal 907 | 220 113 76 . 21 360 . 117 . . Explosive 1892 | . . . . . 54 . 719 . 1119 Electromagnetic 257 | . . . . . 178 . 79 . . Impact 686 | . . . . . . . . . 686 Slashing . | . . . . . . . . . . Piercing . | . . . . . . . . . . Highest Corruption 15 | . . . . 1 . . . . 15 Average Corruption 6 | . . . . 1 . . . . 10 Corruption Purged . | . . . . . . . . . . Corruption Blocked . | . . . . . . . . . . Effects 14 | . . . . 1 . . . . 13 Message Errors 3 | . . . . 1 . . . . 2 Matter Fused 4 | . . . . . . . . . 4 Energy Discharges 2 | . . . . . . . . . 2 Parts Rejected 2 | . . . . . . . . . 2 Data Loss (minor) 1 | . . . . . . . . . 1 Misfires 1 | . . . . . . . . . 1 Misdirections 1 | . . . . . . . . . 1 Overload Shots . | . . . . . . . . . . Overflow Damage 246 | . . . . . 75 . . . 171 Projectiles . | . . . . . . . . . . Explosions 81 | . . . . . 75 . . . 6 Melee 165 | . . . . . . . . . 165 Knockbacks . | . . . . . . . . . . Impact . | . . . . . . . . . . Kinetic . | . . . . . . . . . . Secondary . | . . . . . . . . . . Self-Inflicted Damage 210 | . . . . . 29 . 22 . 159 Shots 8 | . . . . . 2 . 1 . 5 Rammed . | . . . . . . . . . . Targets Rammed . | . . . . . . . . . . Kicked . | . . . . . . . . . . Crushed . | . . . . . . . . . . Highest Temperature 668 | 40 153 58 . 29 199 . 668 . 415 Average Temperature 84 | 18 69 22 . 10 59 . 169 . 101 Received Heat Transfer 1555 | . 162 27 . 135 63 . 72 . 1096 Effects 4 | . . . . . . . 3 . 1 Shutdowns 1 | . . . . . . . . . 1 Interference 1 | . . . . . . . 1 . . Damage (minor) 1 | . . . . . . . 1 . . Damage (core) 1 | . . . . . . . 1 . . Siege Activations . | . . . . . . . . . . Martial Activations . | . . . . . . . . . . Shielding Activations . | . . . . . . . . . . Robots Disrupted 1 | . . . . . 1 . . . . Combat Hostiles 1 | . . . . . 1 . . . . Robots Corrupted 2 | . . . . . . . . . 2 Combat Hostiles 2 | . . . . . . . . . 2 Parts Fried 1 | . . . . . . . . . 1 Impact Corruptions 5 | . . . . . . . . . 5 Robots Melted 1 | . . . . . . . 1 . . Combat Hostiles 1 | . . . . . . . 1 . . Parts Melted 1 | . . . . . 1 . . . . Heat Transferred 1916 | 500 250 175 . 50 608 . 333 . . Parts Sabotaged . | . . . . . . . . . . Parts Stolen . | . . . . . . . . . . Parts Stripped . | . . . . . . . . . . Power Chain Reactions 2 | . . . . . 2 . . . . Alert | -11 -10 -10 -10 -9 -8 -7 -7 -6 -6 ------- Run | Yrd Mat Min Exi Min Mat Fac DSF Fac Gar Maximum Alert Level 1 | . . . . . . . 1 . 1 Low Security (%) 84 | 100 100 100 . 100 100 100 37 100 13 Level 1 15 | . . . . . . . 62 . 86 Level 2 . | . . . . . . . . . . Level 3 . | . . . . . . . . . . Level 4 . | . . . . . . . . . . Level 5 . | . . . . . . . . . . High Security . | . . . . . . . . . . Max Security . | . . . . . . . . . . Sterilizations 1 | . . . . . . . 1 . . Peak Influence 376 | 10 50 112 . 75 94 . 326 170 376 Initial 170 | . . 7 . . . . . 170 107 Average 63 | 1 13 49 . 13 22 . 202 164 223 Influence Increases 1807 | 50 102 285 . 244 367 . 326 4 429 Destroy 0b10 Robot/C 1060 | . 80 220 . 180 100 . 220 . 260 Destroy 0b10 Robot/NC 105 | 50 . 5 . 20 30 . . . . Destroy Leader 200 | . 20 30 . 40 40 . 30 . 40 Allied During Kill 34 | . . 30 . 4 . . . . . Trap Triggered on 0b10 10 | . . . . . . . 10 . . Successful Hack 21 | . . . . . 17 . . 4 . Disable Machine 90 | . . . . . 75 . 15 . . Anti-Garrison Action 50 | . . . . . . . . . 50 Destroy Structure 147 | . 2 . . . 75 . 36 . 34 Lose Combat Pursuer 90 | . . . . . 30 . 15 . 45 Influence Decreases 1451 | 50 81 271 35 244 367 . . 176 227 Entered New Map 252 | . . 14 35 . . . . 156 47 Time Decay 945 | 50 81 237 . 190 367 . . 20 . Lost Part 200 | . . . . 20 . . . . 180 Lost Ally 54 | . . 20 . 34 . . . . . Squads Dispatched 3 | . 1 . . . . . 2 . . Investigation 1 | . 1 . . . . . . . . Extermination . | . . . . . . . . . . Reinforcement 2 | . . . . . . . 2 . . Assault . | . . . . . . . . . . Garrison . | . . . . . . . . . . Intercept . | . . . . . . . . . . Searches Triggered . | . . . . . . . . . . Construction Impeded . | . . . . . . . . . . Haulers Reinforced . | . . . . . . . . . . Active Scanning Responses . | . . . . . . . . . . Cargo Convoy Interrupts . | . . . . . . . . . . Stealth | -11 -10 -10 -10 -9 -8 -7 -7 -6 -6 --------- Run | Yrd Mat Min Exi Min Mat Fac DSF Fac Gar Distress Signals 2 | . 1 . . . 1 . . . . Communications Jammed . | . . . . . . . . . . Distress Signals . | . . . . . . . . . . Times Spotted 68 | . 5 12 . 10 10 . 10 . 21 Peak Tracking Total 10 | . 3 4 . 5 3 . 3 . 10 Tactical Retreats 5 | . . . . . 2 . 1 . 2 Traps | -11 -10 -10 -10 -9 -8 -7 -7 -6 -6 ------- Run | Yrd Mat Min Exi Min Mat Fac DSF Fac Gar Traps Triggered . | . . . . . . . . . . Indirectly . | . . . . . . . . . . Trap Hack Attempts . | . . . . . . . . . . Triggered . | . . . . . . . . . . Disarmed . | . . . . . . . . . . Reprogrammed . | . . . . . . . . . . Reused 1 | . . . . . . . 1 . . Traps Extracted . | . . . . . . . . . . Installed 4 | . . . . . . . 4 . . Triggered 1 | . . . . . . . 1 . . Most Traps Carried 1 | . . . . . . . 1 . . Machines | -11 -10 -10 -10 -9 -8 -7 -7 -6 -6 ---------- Run | Yrd Mat Min Exi Min Mat Fac DSF Fac Gar Machines Disabled 7 | . . . . . 5 . 1 . 1 Max in Single Turn 3 | . . . . . 3 . 1 . 1 Garrison Relay 1 | . . . . . . . . . 1 Machines Repaired . | . . . . . . . . . . Machines Dismantled . | . . . . . . . . . . Machines Sabotaged . | . . . . . . . . . . Overloaded Fab Kills . | . . . . . . . . . . Hacking | -11 -10 -10 -10 -9 -8 -7 -7 -6 -6 --------- Run | Yrd Mat Min Exi Min Mat Fac DSF Fac Gar Machines Accessed 9 | . 1 . 1 . 5 1 . 1 . Terminals 5 | . . . . . 4 1 . . . Fabricators . | . . . . . . . . . . Repair Stations 2 | . 1 . . . 1 . . . . Recycling Units . | . . . . . . . . . . Scanalyzers . | . . . . . . . . . . Garrison Access 1 | . . . . . . . . 1 . Total Hacks 23 | . 5 . 1 . 15 1 . 1 . Successful 16 | . 3 . 1 . 10 1 . 1 . Failed 7 | . 2 . . . 5 . . . . Catastrophic . | . . . . . . . . . . Database Lockouts . | . . . . . . . . . . Manual 6 | . . . 1 . 5 . . . . Terminals 12 | . . . . . 11 1 . . . Fabricators . | . . . . . . . . . . Repair Stations 9 | . 5 . . . 4 . . . . Recycling Units . | . . . . . . . . . . Scanalyzers . | . . . . . . . . . . Garrison Access 1 | . . . . . . . . 1 . Terminal Hacks 8 | . . . 1 . 6 1 . . . Part Schematic 1 | . . . . . 1 . . . . Robot Analysis 1 | . . . . . 1 . . . . Open DSF 1 | . . . . . . 1 . . . Branch Access Points 1 | . . . . . 1 . . . . Transport Status 1 | . . . . . 1 . . . . Hauler Manifests 2 | . . . . . 2 . . . . Proto ID Catalog 1 | . . . 1 . . . . . . Fabricator Hacks . | . . . . . . . . . . Repair Station Hacks 5 | . 3 . . . 2 . . . . Scan Component 3 | . 2 . . . 1 . . . . Repair 2 | . 1 . . . 1 . . . . Recycling Unit Hacks . | . . . . . . . . . . Scanalyzer . | . . . . . . . . . . Garrison Access Hacks 1 | . . . . . . . . 1 . Unlock Access 1 | . . . . . . . . 1 . Unauthorized Hacks 2 | . . . . . 2 . . . . Terminals 2 | . . . . . 2 . . . . Botnet 1 | . . . . . 1 . . . . Operators 1 | . . . . . 1 . . . . Fabricators . | . . . . . . . . . . Repair Stations . | . . . . . . . . . . Recycling Units . | . . . . . . . . . . Scanalyzers . | . . . . . . . . . . Garrison Access . | . . . . . . . . . . Data Cores Recovered . | . . . . . . . . . . Used . | . . . . . . . . . . Hacking Detections 6 | . 1 . . . 5 . . . . Full Trace Events 1 | . 1 . . . . . . . . Feedback Events . | . . . . . . . . . . Feedback Blocked . | . . . . . . . . . . Robot Schematics Acquired . | . . . . . . . . . . Robots Built . | . . . . . . . . . . Authchips . | . . . . . . . . . . Time . | . . . . . . . . . . Total Robot Build Rating . | . . . . . . . . . . Part Schematics Acquired 1 | . . . . . 1 . . . . Parts Built . | . . . . . . . . . . Authchips . | . . . . . . . . . . Time . | . . . . . . . . . . Total Part Build Rating . | . . . . . . . . . . Part Studies Acquired . | . . . . . . . . . . Parts Repaired 2 | . 1 . . . 1 . . . . Time 58 | . 26 . . . 32 . . . . Parts Recycled . | . . . . . . . . . . Recycled Matter . | . . . . . . . . . . Retrieved Matter . | . . . . . . . . . . Retrieved Components . | . . . . . . . . . . Parts Scanalyzed . | . . . . . . . . . . Part Schematics Acquired . | . . . . . . . . . . Parts Damaged . | . . . . . . . . . . Bothacking | -11 -10 -10 -10 -9 -8 -7 -7 -6 -6 ------------ Run | Yrd Mat Min Exi Min Mat Fac DSF Fac Gar Used RIF Installer . | . . . . . . . . . . Robots Hacked . | . . . . . . . . . . Non-combat . | . . . . . . . . . . Combat . | . . . . . . . . . . Robot Hacks Applied . | . . . . . . . . . . Relay Couplers Released 5 | . . . . . . . . . 5 Machine Destruction 5 | . . . . . . . . . 5 Fabnet Peak Effective % . | . . . . . . . . . . Robots Rewired . | . . . . . . . . . . Allies Hacked . | . . . . . . . . . . Hacks Repelled . | . . . . . . . . . . Allies | -11 -10 -10 -10 -9 -8 -7 -7 -6 -6 -------- Run | Yrd Mat Min Exi Min Mat Fac DSF Fac Gar Total Allies 3 | . . 3 . . . . . . . Largest Group 3 | . . 3 2 2 . . . . . Highest-Rated Group 40 | . . 40 32 32 . . . . . Highest-Rated Ally 16 | . . 16 16 16 . . . . . Initial Warlord ECA Mod 9 | . . . . . . . . 9 9 Total Orders . | . . . . . . . . . . Ally Attacks 24 | . . 17 . 7 . . . . . Total Damage 257 | . . 173 . 84 . . . . . Kills 5 | . . 5 . . . . . . . Allies Corrupted . | . . . . . . . . . . Allies Melted . | . . . . . . . . . . Intel | -11 -10 -10 -10 -9 -8 -7 -7 -6 -6 ------- Run | Yrd Mat Min Exi Min Mat Fac DSF Fac Gar Active Infowar (turns) 3303 | 170 303 684 420 802 924 . . . . Traps 313 | . . . . . 313 . . . . Seismic 3014 | 170 303 684 420 802 635 . . . . Robot Analysis Total 1 | . . . . . 1 . . . . Derelict Logs Recovered 3 | . . 2 . 1 . . . . . Drone Launches . | . . . . . . . . . . Drone Recoveries . | . . . . . . . . . . Exploration | -11 -10 -10 -10 -9 -8 -7 -7 -6 -6 ------------- Run | Yrd Mat Min Exi Min Mat Fac DSF Fac Gar Turns Passed 4585 | 251 303 684 420 802 1172 61 286 41 565 Spaces Moved 2275 | 99 118 389 259 487 536 36 119 23 209 Core 6 | 4 . . . . . . . . 2 Treads 1669 | 95 118 389 259 . 424 36 119 23 206 Legs 61 | . . . . 26 34 . . . 1 Wheels 539 | . . . . 461 78 . . . . Hover . | . . . . . . . . . . Flight . | . . . . . . . . . . Fastest Speed 50 | 50 160 160 160 130 145 160 160 162 162 Average Speed 161 | 157 160 160 160 143 159 160 161 162 212 Slowest Speed 950 | 160 160 160 160 260 190 160 162 162 950 Overloaded Moves . | . . . . . . . . . . Propulsion Burnouts . | . . . . . . . . . . Robots Hopped . | . . . . . . . . . . Potential Cave-ins . | . . . . . . . . . . Cave-ins Triggered . | . . . . . . . . . . Exploration Rate (%) 36 | 6 26 72 60 77 46 1 54 1 18 Regions Visited 9 Branch Regions 3 Pre-discovered Areas 1 | . . . . 1 . . . . . Known Exits Taken 3 | . . . . . 1 1 . 1 . Unknown Exits Taken 5 | 1 1 1 1 1 . . . . . Scrap Searched 3 | . . 1 . 2 . . . . . Spaces Dug 30 | . 2 . . . 28 . . . . Terrain Destroyed 192 | . 2 . . . 78 . 57 . 55 Melee 4 | . . . . . 4 . . . . Projectile 8 | . 2 . . . 5 . 1 . . AOE 180 | . . . . . 69 . 56 . 55 Terrain Rammed . | . . . . . . . . . . Walls Destroyed . | . . . . . . . . . . Machines Disabled . | . . . . . . . . . . Actions | -11 -10 -10 -10 -9 -8 -7 -7 -6 -6 --------- Run | Yrd Mat Min Exi Min Mat Fac DSF Fac Gar Total 2873 | 141 187 418 266 539 807 41 181 25 268 Wait 211 | . 41 6 . 8 143 . 7 . 6 Move 2267 | 98 117 388 258 486 535 35 118 23 209 Hop . | . . . . . . . . . . Pick Up 72 | 8 . 3 6 5 36 3 11 . . Fast Attach 28 | 7 1 . . 1 8 . 3 1 7 Attach 13 | . . . . 4 4 1 1 . 3 Detach . | . . . . . . . . . . Swap 40 | . 3 2 . 2 16 . 9 1 7 Drop 57 | . 1 1 2 3 35 2 13 . . Fire 157 | 28 24 18 . 30 26 . 15 . 16 Melee 24 | . . . . . 4 . . . 20 Ram . | . . . . . . . . . . Kick . | . . . . . . . . . . Crush . | . . . . . . . . . . Escape Stasis . | . . . . . . . . . . Rewire . | . . . . . . . . . . Trap 4 | . . . . . . . 4 . . Miscellaneous . | . . . . . . . . . . Route ------- -11/Scrapyard -10/Materials -10/Mines (discovered 3 exits: [*Mat x2] / *Exi) -10/Exiles -9/Mines -8/Materials (discovered 2 exits: *Fac x2) -7/Factory -7/DSF -6/Factory -6/Garrison History --------- Turn | Location | Event 5 | -11/Scrapyard | Discovered new exit (range 15) 252 | -11/Scrapyard | Entered Materials 310 | -10/Materials | Build established: Mutant 441 | -10/Materials | Repaired Lgt. Treads 547 | -10/Materials | Discovered new exit (range 6) 555 | -10/Materials | Entered Mines 556 | -10/Mines | Assembled infested the area 614 | -10/Mines | Met a Derelict bent on vengeance 640 | -10/Mines | Assisted by bots powering up and referring to "LRC-V3" 711 | -10/Mines | Learned 4 Materials zone layouts 846 | -10/Mines | Discovered new exit (range 15) 981 | -10/Mines | Learned Materials trap positions 1028 | -10/Mines | Discovered new exit (range 6) 1099 | -10/Mines | Found a damaged Exp. Sensor Array with a note attached 1102 | -10/Mines | Found Prototype Device 1225 | -10/Mines | Discovered new exit (range 5) 1239 | -10/Mines | Entered Exiles 1239 | -10/Exiles | Accompanied by 2 allies 1281 | -10/Exiles | Met 8R-AWN 1308 | -10/Exiles | Met EX-HEX 1353 | -10/Exiles | Met EX-BIN 1372 | -10/Exiles | Aligned with FarCom system 1374 | -10/Exiles | Given EX-Vault access code 1411 | -10/Exiles | Opened EX-Vault 1422 | -10/Exiles | Found Potential Leg 1424 | -10/Exiles | Found Potential Leg 1454 | -10/Exiles | Warned to stay clear of 0b10 Research branches 1499 | -10/Exiles | Met EX-DEC 1637 | -10/Exiles | Discovered new exit (range 15) 1659 | -10/Exiles | Left Exiles lab with Potential Leg 1659 | -10/Exiles | Entered Mines 1659 | -9/Mines | Accompanied by 2 allies 1668 | -9/Mines | Core integrity fell below 50% 1751 | -9/Mines | Learned location of Zion (-6) 2269 | -9/Mines | Core integrity fell below 20% 2324 | -9/Mines | Received a Rocket Launcher from a helpful Derelict 2455 | -9/Mines | Discovered new exit (range 5) 2461 | -9/Mines | Entered Materials 2461 | -8/Materials | Evolved 4 slots: Propulsion x2, Utility x1, Weapon x1 2462 | -8/Materials | Identified exit to Factory 2463 | -8/Materials | Loaded intel: 17 trap records 2981 | -8/Materials | Discovered exit to Factory (range 16) 3161 | -8/Materials | Build established: Scavenger-Skirmisher 3332 | -8/Materials | Repaired Imp. Treads 3633 | -8/Materials | Entered Factory 3633 | -7/Factory | Evolved 2 slots: Propulsion x1, Utility x1 3694 | -7/Factory | Identified exit to DSF 3694 | -7/Factory | Entered DSF 3696 | -7/DSF | Build established: Scavenger-Tank 3758 | -7/DSF | Additional patrols routed to DSF 3846 | -7/DSF | Sterilization system engaged 3858 | -7/DSF | Discovered new exit (range 15) 3866 | -7/DSF | Ambient heat levels rising (+10) 3881 | -7/DSF | Ambient heat levels rising (+10) 3896 | -7/DSF | Ambient heat levels rising (+10) 3911 | -7/DSF | Ambient heat levels rising (+10) 3926 | -7/DSF | Ambient heat levels rising (+10) 3941 | -7/DSF | Ambient heat levels rising (+10) 3956 | -7/DSF | Ambient heat levels rising (+10) 3971 | -7/DSF | Ambient heat levels rising (+10) 3980 | -7/DSF | Entered Factory 3980 | -6/Factory | Evolved 2 slots: Power x1, Propulsion x1 4021 | -6/Factory | Identified exit to Garrison 4021 | -6/Factory | Entered Garrison 4053 | -6/Garrison | Triggered checkpoint 4209 | -6/Garrison | Spotted B-75 Beast 4274 | -6/Garrison | Destroyed B-75 Beast 4289 | -6/Garrison | System corruption reached 10% 4295 | -6/Garrison | Lost 5 parts (4n1u) 4503 | -6/Garrison | Lost 4 parts (1p1n1u1w) 4571 | -6/Garrison | Core integrity fell below 50% 4586 | -6/Garrison | Self-destructed Last Messages --------------- 04533_ Imp. Grenade Launcher destroyed. 04534_ Lgt. Nuclear Core destroyed. 04545_ C-45 Heavy ARC bursts open, deploying its payload. 04545_ B-48 Gladiator unfolds itself. 04545_ G-50 Soldier unfolds itself. 04546_ The unstable cave ceiling collapses. 04547_ Carbon-fiber Leg destroyed. 04553_ Lyr. Medium Armor Plating destroyed. 04556_ Imp. Medium Treads destroyed. 04558_ Lgt. Angular Momentum Engine destroyed. 04564_ System corrupted: Microactuators rejected. 04567_ Acquired 13 matter. 04576_ G-67 Veteran destroyed. 04576_ Destroyed Carbon-fiber Leg. 04577_ Imp. Grenade Launcher destroyed. 04581_ G-50 Soldier destroyed. 04585_ Powered Hammer destroyed. 04585_ System corrupted by crushing effect (+5). 04586_ Critical hit (Burn: +37). Map ----- +----------------------------------------------------+ | ?????????????????????????????????????????????????? | | ?????????????????????????????????????????????????? | | ???????????????????????###???????????????????????? | | ?????????????????????? ??? ???????????????????? | | ?????????????????????? ?? ????????????????? | | ?????????????????????? ?? ? ??????????????? | | ??????????????????????# ?? ## ????????????? | | ?????????????????????## ## ????????????? | | ????????????????????? "???????????? | | ????????????????????? % "???????????? | | ?????????????????????? = % ?????????????? | | ?????????????????????? * = ??????????????? | | ??????????????????????#% #???????????????? | | ??????????????????##### # % #???????????????? | | ??????????????????? ?????????????????? | | ????????????????????? ???????????????????? | | ??????????????????????# ?????????????????????? | | ????????????ggg???????## #??????????????????????? | | ??????????????????????# #????g?????????????????? | | ?????????????????????## g ####???????????????????? | | ?????????????????????# #???????????????????? | | ????????????????????## [ ##??????????????????? | | ????????????????????# !g* #??????????????????? | | ????????????????????## g= #??????????????????? | | ??#################### gbg #???????????????????? | | ??# [ @ #???????????????????? | | ??# [ ##???????Y???????????? | | ??# ################# # #????????????????????? | | ??# #???????????????# #????????????????????? | | ??# #??????????????? # ###????????????????????? | | ??# #??????????????## # #??????????????????????? | | ??# #???????????????### #??????????????????????? | | ??# #?????????????????# #??????????????????????? | | ??# #?????????????????# #??????????????????????? | | ??# #?????????????????# #??????????????????????? | | ??# ###???????????????# #??????????????????????? | | ??# #???????????????# #??????????????????????? | | ??# #???????????????# #??????????????????????? | | ??# #???????????????# #??????????????????????? | | ??# ###???????????????# #??????????????????????? | | ??# #?????????????????# #??????????????????????? | | ??# #?????????????????# #??????????????????????? | | ??# #?????????????????# #??????????????????????? | | ??# #?????????????????# #??????????????????????? | | #?# #?????????????????# #??????????????????????? | | #?# #?????????????????# #??????????????????????? | | ### #?################# #??????????????????????? | | # #??????????????????????? | | # #??????????????????????? | | ###########################??????????????????????? | +----------------------------------------------------+ Best States ------------- Heat Dissipation 37 Coolant Potential 65 Energy Generation 27 Energy Capacity 350 Matter Stores 300 Matter Capacity 300 Sight Range 16 Terrain Scan Density 10 Armor Coverage 375 Resistance: EM 15 Melee Speed Boost 20 Evasion (%) 40 Recoil Reduction 5 Defensive Hacking 10 Item Schematics ----------------- Plasma Cutter | -8/Materials | Hacked Robot Schematics ------------------ None Fabricated ------------ Nothing Repaired ---------- Lgt. Treads | 57% | -10/Materials Imp. Treads | 47% | -8/Materials Studied --------- None Alien Tech Used ----------------- None Achievements -------------- None Challenges ------------ None Game ------ Seed NovaGrenadeSpiker Manual? 0 Play Time 00:42:52 Cumulative 384.2 hours Start 2026.08.01 @ 23:19:06 End 2026.08.02 @ 01:23:56 Sessions 3 Manual Loads 0 Difficulty Rogue Special Mode None Game No. 197 Rogue 197 Adventurer 0 Explorer 0 Win Type - Total 8 Types 4/1/1/1/0/0/0/1/0/0 Lore% 71 Gallery% 72 Achievement% 63 Wizard Run 0 Options --------- Layout 1 ASCII 0 Keyboard 0 Movement Arrows Keybinds 0 Fullscreen 1 Font 18/SmallcapsGlow Map View 54x44 Zoom Use 0% Tactical HUD 1 Map Filters NONE Filters NONE Steam 0 RUN: 98d8b666-403b-4f32-89ac-491b1d86f92d